[Event "2026 European Womens Championship"]
[Site "Batumi, GE"]
[Date "2026.05.30"]
[Round "6"]
[White "Odisharia, Teona"]
[Black "Diasamidze, Lulu"]
[Result "1-0"]
[Board "109"]
[TimeControl "5400+30"]
[WhiteFideId "13602322"]
[BlackFideId "13623818"]
[WhiteElo "2167"]
[BlackElo "1924"]
[WhiteTitle "WFM"]
[WhiteClock "0:21:28"]
[BlackClock "0:42:03"]
[Variant "Standard"]

1. e4 {[%clk 1:24:17]}  c5 {[%clk 1:30:56]} 2. Nf3 {[%clk 1:24:36]}  e6 {[%clk 1:31:20]} 3. d4 {[%clk 1:25:01]}  cxd4 {[%clk 1:31:46]}
4. Nxd4 {[%clk 1:25:26]}  Nf6 {[%clk 1:32:11]} 5. Nc3 {[%clk 1:24:50]}  Nc6 {[%clk 1:32:37]} 6. Ndb5 {[%clk 1:19:48]}  d6 {[%clk 1:32:50]}
7. Bf4 {[%clk 1:20:13]}  e5 {[%clk 1:33:17]} 8. Bg5 {[%clk 1:20:40]}  a6 {[%clk 1:33:22]} 9. Na3 {[%clk 1:20:22]}  b5 {[%clk 1:33:37]}
10. Nd5 {[%clk 1:20:36]}  Be7 {[%clk 1:34:01]} 11. Bxf6 {[%clk 1:20:59]}  Bxf6 {[%clk 1:34:16]} 12. c4 {[%clk 1:21:06]}  b4 {[%clk 1:34:19]}
13. Nc2 {[%clk 1:21:32]}  a5 {[%clk 1:34:46]} 14. b3 {[%clk 1:21:44]}  O-O {[%clk 1:33:59]} 15. g3 {[%clk 1:22:08]}  g6 {[%clk 1:33:30]}
16. Bg2 {[%clk 1:21:17]}  Bg7 {[%clk 1:33:50]} 17. O-O {[%clk 1:21:39]}  Be6 {[%clk 1:29:14]} 18. Qd3 {[%clk 1:19:13]}  Qb8 {[%clk 1:26:50]}
19. Rad1 {[%clk 1:19:08]}  Rd8 {[%clk 1:26:41]} 20. Kh1 {[%clk 1:19:18]}  Qa7 {[%clk 1:26:06]} 21. f4 {[%clk 1:10:41]}  Bxd5 {[%clk 1:26:35]}
22. Qxd5 {[%clk 1:11:04]}  Qc5 {[%clk 1:26:58]} 23. Qd3 {[%clk 1:10:22]}  a4 {[%clk 1:20:00]} 24. Qe2 {[%clk 1:03:49]}  axb3 {[%clk 1:08:40]}
25. axb3 {[%clk 1:03:51]}  Ra2 {[%clk 1:05:00]} 26. Rd5 {[%clk 1:03:43]}  Qb6 {[%clk 0:53:58]} 27. Qd1 {[%clk 1:01:20]}  Qc7 {[%clk 0:43:24]}
28. f5 {[%clk 0:48:30]}  Ra5 {[%clk 0:37:18]} 29. Rd3 {[%clk 0:37:40]}  Bh6 {[%clk 0:31:02]} 30. Qe1 {[%clk 0:31:59]}  Qb6 {[%clk 0:26:19]}
31. g4 {[%clk 0:31:37]}  Bf4 {[%clk 0:25:12]} 32. Qh4 {[%clk 0:28:18]}  Ra2 {[%clk 0:22:33]} 33. Ne1 {[%clk 0:28:08]}  Re2 {[%clk 0:17:37]}
34. Rh3 {[%clk 0:25:02]}  h6 {[%clk 0:17:20]} 35. fxg6 {[%clk 0:25:02]}  fxg6 {[%clk 0:16:26]} 36. Qf6 {[%clk 0:25:15]}  Qa7 {[%clk 0:16:16]}
37. Qxg6+ {[%clk 0:14:23]}  Qg7 {[%clk 0:16:41]} 38. Qe6+ {[%clk 0:14:43]}  Qf7 {[%clk 0:16:44]} 39. Qxf7+ {[%clk 0:12:55]}  Kxf7 {[%clk 0:17:11]}
40. Nd3 {[%clk 0:13:13]}  Kg6 {[%clk 0:14:50]} 41. Rxf4 {[%clk 0:07:57]}  Rxg2 {[%clk 0:11:32]} 42. Kxg2 {[%clk 0:07:15]}  exf4 {[%clk 0:11:58]}
43. Nxf4+ {[%clk 0:07:40]}  Kf6 {[%clk 0:12:24]} 44. Rh5 {[%clk 0:25:37]}  Ne5 {[%clk 0:41:10]} 45. Rxh6+ {[%clk 0:23:15]}  Kg5 {[%clk 0:41:16]}
46. Ne6+ {[%clk 0:23:36]}  Kxh6 {[%clk 0:41:42]} 47. Nxd8 {[%clk 0:24:03]}  Nxc4 {[%clk 0:41:55]} 48. Nc6 {[%clk 0:22:29]}  Nd2 {[%clk 0:41:34]}
49. Nxb4 {[%clk 0:22:29]}  Nxb3 {[%clk 0:41:53]} 50. Kg3 {[%clk 0:22:09]}  Nc5 {[%clk 0:41:27]} 51. Kf4 {[%clk 0:21:50]}  Kg6 {[%clk 0:41:53]}
52. h4 {[%clk 0:21:37]}  Ne6+ {[%clk 0:42:03]} 53. Ke3 {[%clk 0:21:28]} 1-0

[Event "2026 European Womens Championship"]
[Site "Batumi, GE"]
[Date "2026.05.30"]
[Round "6"]
[White "Berke, Ana"]
[Black "Hariharan, Shambavi"]
[Result "1/2-1/2"]
[Board "110"]
[TimeControl "5400+30"]
[WhiteFideId "14510359"]
[BlackFideId "488160"]
[WhiteElo "2164"]
[BlackElo "2008"]
[WhiteTitle "WIM"]
[BlackTitle "WFM"]
[WhiteClock "0:35:02"]
[BlackClock "0:30:16"]
[Variant "Standard"]

1. e4 {[%clk 1:30:44]}  e5 {[%clk 1:30:54]} 2. Nf3 {[%clk 1:31:06]}  Nc6 {[%clk 1:31:10]} 3. Bb5 {[%clk 1:31:20]}  a6 {[%clk 1:31:34]}
4. Ba4 {[%clk 1:31:45]}  Nf6 {[%clk 1:31:56]} 5. O-O {[%clk 1:31:38]}  Be7 {[%clk 1:32:11]} 6. Re1 {[%clk 1:31:17]}  b5 {[%clk 1:32:18]}
7. Bb3 {[%clk 1:31:40]}  O-O {[%clk 1:32:38]} 8. a4 {[%clk 1:30:52]}  Bb7 {[%clk 1:31:05]} 9. c3 {[%clk 1:29:10]}  d5 {[%clk 1:27:03]}
10. axb5 {[%clk 1:24:19]}  axb5 {[%clk 1:27:22]} 11. Rxa8 {[%clk 1:24:38]}  Bxa8 {[%clk 1:26:44]} 12. exd5 {[%clk 1:18:49]}  Nxd5 {[%clk 1:25:20]}
13. d4 {[%clk 1:18:01]}  exd4 {[%clk 1:23:36]} 14. Qd3 {[%clk 1:13:23]}  b4 {[%clk 1:17:43]} 15. Bc2 {[%clk 1:11:41]}  g6 {[%clk 1:13:13]}
16. Bh6 {[%clk 1:09:57]}  Re8 {[%clk 1:10:18]} 17. cxd4 {[%clk 1:09:29]}  Bf6 {[%clk 1:07:23]} 18. Rxe8+ {[%clk 1:07:15]}  Qxe8 {[%clk 1:07:49]}
19. Nbd2 {[%clk 1:07:11]}  Bh8 {[%clk 0:54:59]} 20. h4 {[%clk 1:04:43]}  Nce7 {[%clk 0:50:39]} 21. Qe2 {[%clk 1:01:25]}  Bg7 {[%clk 0:43:12]}
22. Bxg7 {[%clk 1:00:12]}  Kxg7 {[%clk 0:43:37]} 23. h5 {[%clk 0:57:57]}  Qc6 {[%clk 0:39:23]} 24. Be4 {[%clk 0:55:41]}  Qf6 {[%clk 0:33:24]}
25. Ne5 {[%clk 0:50:33]}  Qe6 {[%clk 0:25:16]} 26. Qb5 {[%clk 0:37:34]}  f6 {[%clk 0:20:06]} 27. Qe8 {[%clk 0:30:32]}  Qg8 {[%clk 0:16:51]}
28. Qxg8+ {[%clk 0:25:30]}  Nxg8 {[%clk 0:16:15]} 29. Nd3 {[%clk 0:25:13]}  Nge7 {[%clk 0:11:47]} 30. hxg6 {[%clk 0:25:16]}  hxg6 {[%clk 0:11:09]}
31. Nxb4 {[%clk 0:25:06]}  Nxb4 {[%clk 0:11:18]} 32. Bxa8 {[%clk 0:25:32]}  c6 {[%clk 0:09:30]} 33. Kf1 {[%clk 0:24:55]}  Kf7 {[%clk 0:09:28]}
34. Ke2 {[%clk 0:23:07]}  Ke6 {[%clk 0:09:05]} 35. Ne4 {[%clk 0:20:18]}  f5 {[%clk 0:06:33]} 36. Nc3 {[%clk 0:20:14]}  Kd6 {[%clk 0:04:58]}
37. Ke3 {[%clk 0:17:40]}  g5 {[%clk 0:03:34]} 38. g4 {[%clk 0:16:51]}  Kc7 {[%clk 0:01:38]} 39. gxf5 {[%clk 0:16:24]}  Nxf5+ {[%clk 0:01:56]}
40. Kf3 {[%clk 0:10:57]}  Nxd4+ {[%clk 0:01:32]} 41. Kg4 {[%clk 0:11:01]}  Nd3 {[%clk 0:01:24]} 42. Nd1 {[%clk 0:06:02]}  Kb8 {[%clk 0:28:45]}
43. Bxc6 {[%clk 0:34:53]}  Nxc6 {[%clk 0:29:11]} 44. Kxg5 {[%clk 0:35:09]}  Kb7 {[%clk 0:29:12]} 45. f4 {[%clk 0:34:01]}  Nd4 {[%clk 0:29:31]}
46. f5 {[%clk 0:34:11]}  Nxf5 {[%clk 0:29:50]} 47. Kxf5 {[%clk 0:34:36]}  Nxb2 {[%clk 0:30:16]} 48. Nxb2 {[%clk 0:35:02]} 1/2-1/2

[Event "2026 European Womens Championship"]
[Site "Batumi, GE"]
[Date "2026.05.30"]
[Round "6"]
[White "Huseynova, Lala"]
[Black "Ashotia, Barbare"]
[Result "1/2-1/2"]
[Board "111"]
[TimeControl "5400+30"]
[WhiteFideId "13431781"]
[BlackFideId "13625187"]
[WhiteElo "2149"]
[BlackElo "1913"]
[WhiteTitle "WFM"]
[WhiteClock "0:03:01"]
[BlackClock "0:32:47"]
[Variant "Standard"]

1. e4 {[%clk 1:30:57]}  c5 {[%clk 1:29:48]} 2. Nf3 {[%clk 1:31:09]}  e6 {[%clk 1:29:58]} 3. d4 {[%clk 1:31:26]}  cxd4 {[%clk 1:30:02]}
4. Nxd4 {[%clk 1:31:48]}  Nc6 {[%clk 1:30:27]} 5. Nc3 {[%clk 1:32:02]}  Nf6 {[%clk 1:30:45]} 6. a3 {[%clk 1:31:52]}  d6 {[%clk 1:07:55]}
7. Be3 {[%clk 1:31:41]}  Be7 {[%clk 1:07:36]} 8. f3 {[%clk 1:31:01]}  a6 {[%clk 1:05:42]} 9. Qd2 {[%clk 1:29:52]}  d5 {[%clk 0:54:42]}
10. exd5 {[%clk 1:09:25]}  Nxd5 {[%clk 0:52:42]} 11. Nxd5 {[%clk 1:09:33]}  Qxd5 {[%clk 0:52:08]} 12. O-O-O {[%clk 1:07:20]}  Nxd4 {[%clk 0:49:11]}
13. Qxd4 {[%clk 1:05:18]}  Qxd4 {[%clk 0:44:31]} 14. Bxd4 {[%clk 1:04:18]}  Bg5+ {[%clk 0:43:15]} 15. Kb1 {[%clk 1:04:26]}  Bf6 {[%clk 0:43:26]}
16. Bxf6 {[%clk 1:01:26]}  gxf6 {[%clk 0:43:47]} 17. c4 {[%clk 0:52:01]}  Bd7 {[%clk 0:41:04]} 18. b4 {[%clk 0:51:21]}  Bc6 {[%clk 0:40:56]}
19. Kb2 {[%clk 0:50:33]}  Rg8 {[%clk 0:40:17]} 20. Kb3 {[%clk 0:48:42]}  Rd8 {[%clk 0:36:06]} 21. Rxd8+ {[%clk 0:42:49]}  Kxd8 {[%clk 0:36:26]}
22. a4 {[%clk 0:41:51]}  b6 {[%clk 0:33:46]} 23. h4 {[%clk 0:35:21]}  Rg3 {[%clk 0:33:14]} 24. b5 {[%clk 0:33:19]}  axb5 {[%clk 0:27:06]}
25. axb5 {[%clk 0:33:01]}  Bb7 {[%clk 0:27:13]} 26. Kb4 {[%clk 0:29:58]}  e5 {[%clk 0:27:03]} 27. c5 {[%clk 0:29:18]}  bxc5+ {[%clk 0:26:01]}
28. Kxc5 {[%clk 0:29:46]}  f5 {[%clk 0:24:59]} 29. Kb6 {[%clk 0:28:11]}  Kc8 {[%clk 0:25:11]} 30. Ka7 {[%clk 0:24:02]}  e4 {[%clk 0:19:47]}
31. Be2 {[%clk 0:19:46]}  exf3 {[%clk 0:18:41]} 32. Rc1+ {[%clk 0:18:34]}  Kd7 {[%clk 0:18:55]} 33. Bxf3 {[%clk 0:14:57]}  Bxf3 {[%clk 0:17:00]}
34. gxf3 {[%clk 0:13:29]}  Rxf3 {[%clk 0:17:09]} 35. b6 {[%clk 0:12:25]}  Ra3+ {[%clk 0:16:43]} 36. Kb8 {[%clk 0:12:48]}  Rb3 {[%clk 0:12:56]}
37. b7 {[%clk 0:10:23]}  h5 {[%clk 0:04:50]} 38. Rc7+ {[%clk 0:09:09]}  Ke6 {[%clk 0:04:52]} 39. Kc8 {[%clk 0:07:29]}  f4 {[%clk 0:05:16]}
40. b8=Q {[%clk 0:05:34]}  Rxb8+ {[%clk 0:05:39]} 41. Kxb8 {[%clk 0:06:01]}  Kf5 {[%clk 0:03:08]} 42. Rxf7+ {[%clk 0:08:24]}  Kg4 {[%clk 0:33:21]}
43. Kc7 {[%clk 0:08:36]}  Kxh4 {[%clk 0:32:58]} 44. Kd6 {[%clk 0:08:45]}  Kg3 {[%clk 0:32:22]} 45. Ke5 {[%clk 0:06:40]}  h4 {[%clk 0:32:13]}
46. Rg7+ {[%clk 0:02:33]}  Kf3 {[%clk 0:32:07]} 47. Rh7 {[%clk 0:03:00]}  Kg3 {[%clk 0:32:18]} 48. Ke4 {[%clk 0:03:27]}  h3 {[%clk 0:31:57]}
49. Kd3 {[%clk 0:02:15]}  Kg2 {[%clk 0:31:23]} 50. Ke2 {[%clk 0:02:03]}  f3+ {[%clk 0:31:47]} 51. Ke3 {[%clk 0:02:31]}  h2 {[%clk 0:31:41]}
52. Rg7+ {[%clk 0:02:09]}  Kf1 {[%clk 0:31:57]} 53. Rh7 {[%clk 0:02:20]}  Kg2 {[%clk 0:32:19]} 54. Rxh2+ {[%clk 0:02:34]}  Kxh2 {[%clk 0:32:47]}
55. Kxf3 {[%clk 0:03:01]} 1/2-1/2

[Event "2026 European Womens Championship"]
[Site "Batumi, GE"]
[Date "2026.05.30"]
[Round "6"]
[White "Demirtas, Hafize"]
[Black "Mamedjarova, Zeinab"]
[Result "1-0"]
[Board "112"]
[TimeControl "5400+30"]
[WhiteFideId "6382070"]
[BlackFideId "13401521"]
[WhiteElo "1928"]
[BlackElo "2137"]
[BlackTitle "WGM"]
[WhiteClock "0:02:44"]
[BlackClock "0:01:12"]
[Variant "Standard"]

1. e4 {[%clk 1:30:44]}  e5 {[%clk 1:30:50]} 2. Nf3 {[%clk 1:31:07]}  d6 {[%clk 1:31:16]} 3. d4 {[%clk 1:31:32]}  Nd7 {[%clk 1:31:39]}
4. Nc3 {[%clk 1:30:07]}  Ngf6 {[%clk 1:31:48]} 5. Bc4 {[%clk 1:29:58]}  Be7 {[%clk 1:31:53]} 6. O-O {[%clk 1:29:46]}  O-O {[%clk 1:32:16]}
7. Re1 {[%clk 1:29:00]}  c6 {[%clk 1:31:55]} 8. a4 {[%clk 1:29:25]}  a5 {[%clk 1:32:16]} 9. h3 {[%clk 1:29:38]}  Qc7 {[%clk 1:28:01]}
10. Be3 {[%clk 1:28:15]}  Nxe4 {[%clk 1:24:12]} 11. Nxe4 {[%clk 1:26:07]}  d5 {[%clk 1:24:25]} 12. Ned2 {[%clk 1:25:45]}  e4 {[%clk 1:20:01]}
13. Be2 {[%clk 1:25:43]}  exf3 {[%clk 1:16:58]} 14. Nxf3 {[%clk 1:25:45]}  Nf6 {[%clk 1:15:27]} 15. Bd3 {[%clk 1:22:56]}  Ne4 {[%clk 1:15:20]}
16. c3 {[%clk 1:12:59]}  f5 {[%clk 1:14:56]} 17. Qc2 {[%clk 1:12:13]}  Bd6 {[%clk 0:59:25]} 18. Ne5 {[%clk 1:05:26]}  f4 {[%clk 0:40:16]}
19. Bc1 {[%clk 1:01:43]}  g5 {[%clk 0:08:19]} 20. Bxe4 {[%clk 0:25:13]}  dxe4 {[%clk 0:08:44]} 21. Qxe4 {[%clk 0:25:34]}  Bf5 {[%clk 0:08:46]}
22. Qe2 {[%clk 0:25:58]}  Rae8 {[%clk 0:08:58]} 23. Bd2 {[%clk 0:26:11]}  Qg7 {[%clk 0:08:21]} 24. Qh5 {[%clk 0:21:11]}  Re6 {[%clk 0:08:30]}
25. Ng4 {[%clk 0:16:04]}  Rg6 {[%clk 0:08:51]} 26. c4 {[%clk 0:16:13]}  f3 {[%clk 0:08:08]} 27. Bc3 {[%clk 0:12:48]}  fxg2 {[%clk 0:05:55]}
28. d5 {[%clk 0:08:54]}  Qf7 {[%clk 0:02:21]} 29. Nh6+ {[%clk 0:08:26]}  Rxh6 {[%clk 0:02:49]} 30. Qxh6 {[%clk 0:08:47]}  Bg6 {[%clk 0:01:37]}
31. Bd4 {[%clk 0:02:57]}  Bf4 {[%clk 0:02:05]} 32. Re6 {[%clk 0:01:50]}  g4 {[%clk 0:00:35]} 33. Qh4 {[%clk 0:01:36]}  gxh3 {[%clk 0:00:35]}
34. Qxh3 {[%clk 0:01:47]}  cxd5 {[%clk 0:00:45]} 35. cxd5 {[%clk 0:02:10]}  Bb8 {[%clk 0:00:37]} 36. Rae1 {[%clk 0:02:19]}  Bc7 {[%clk 0:00:34]}
37. Re7 {[%clk 0:02:14]}  Qxd5 {[%clk 0:00:43]} 38. Rg7+ {[%clk 0:02:21]}  Kh8 {[%clk 0:01:12]} 39. Rxh7+ {[%clk 0:02:44]} 1-0

[Event "2026 European Womens Championship"]
[Site "Batumi, GE"]
[Date "2026.05.30"]
[Round "6"]
[White "Kalayci, Nino"]
[Black "Dwilewicz, Katarzyna"]
[Result "0-1"]
[Board "113"]
[TimeControl "5400+30"]
[WhiteFideId "13603221"]
[BlackFideId "1148486"]
[WhiteElo "1755"]
[BlackElo "2131"]
[WhiteTitle "WCM"]
[BlackTitle "WIM"]
[WhiteClock "0:00:33"]
[BlackClock "0:21:06"]
[Variant "Standard"]

1. d4 {[%clk 1:30:54]}  Nf6 {[%clk 1:30:43]} 2. c4 {[%clk 1:31:16]}  e6 {[%clk 1:31:07]} 3. Nc3 {[%clk 1:31:40]}  d5 {[%clk 1:31:16]}
4. cxd5 {[%clk 1:31:43]}  exd5 {[%clk 1:31:39]} 5. Bg5 {[%clk 1:32:08]}  Bb4 {[%clk 1:31:51]} 6. e3 {[%clk 1:32:13]}  h6 {[%clk 1:32:05]}
7. Bxf6 {[%clk 1:32:25]}  Qxf6 {[%clk 1:32:25]} 8. Qb3 {[%clk 1:32:30]}  c5 {[%clk 1:19:25]} 9. Bb5+ {[%clk 1:08:30]}  Nc6 {[%clk 1:14:24]}
10. Qxd5 {[%clk 1:03:30]}  O-O {[%clk 1:10:36]} 11. Bxc6 {[%clk 0:59:31]}  bxc6 {[%clk 1:09:01]} 12. Qf3 {[%clk 0:53:51]}  Qg6 {[%clk 1:03:58]}
13. Nge2 {[%clk 0:39:02]}  Bg4 {[%clk 1:02:49]} 14. Qg3 {[%clk 0:33:19]}  cxd4 {[%clk 1:02:11]} 15. Nxd4 {[%clk 0:24:18]}  Bd6 {[%clk 0:52:50]}
16. Qh4 {[%clk 0:21:55]}  Rab8 {[%clk 0:49:05]} 17. O-O {[%clk 0:11:07]}  Rxb2 {[%clk 0:43:37]} 18. h3 {[%clk 0:09:22]}  Bc8 {[%clk 0:35:39]}
19. Rab1 {[%clk 0:05:23]}  Rxb1 {[%clk 0:34:04]} 20. Rxb1 {[%clk 0:04:09]}  c5 {[%clk 0:34:23]} 21. Nde2 {[%clk 0:04:01]}  Ba6 {[%clk 0:32:13]}
22. Rd1 {[%clk 0:02:36]}  Be5 {[%clk 0:26:42]} 23. Nd5 {[%clk 0:00:44]}  Qc2 {[%clk 0:22:12]} 24. Ne7+ {[%clk 0:00:46]}  Kh8 {[%clk 0:21:52]}
25. Re1 {[%clk 0:00:35]}  Bxe2 {[%clk 0:21:40]} 26. f4 {[%clk 0:00:33]}  Bf6 {[%clk 0:21:06]} 0-1

[Event "2026 European Womens Championship"]
[Site "Batumi, GE"]
[Date "2026.05.30"]
[Round "6"]
[White "Vidic, Teja"]
[Black "Kalandadze, Mariam"]
[Result "1-0"]
[Board "114"]
[TimeControl "5400+30"]
[WhiteFideId "14605511"]
[BlackFideId "13621122"]
[WhiteElo "2123"]
[BlackElo "1892"]
[WhiteTitle "WIM"]
[WhiteClock "0:03:59"]
[BlackClock "0:09:18"]
[Variant "Standard"]

1. e4 {[%clk 1:30:57]}  c5 {[%clk 1:30:56]} 2. Nf3 {[%clk 1:31:17]}  d6 {[%clk 1:31:20]} 3. c3 {[%clk 1:31:42]}  Nf6 {[%clk 1:31:24]}
4. Be2 {[%clk 1:32:07]}  g6 {[%clk 1:31:39]} 5. O-O {[%clk 1:32:30]}  Bg7 {[%clk 1:32:06]} 6. Bb5+ {[%clk 1:32:53]}  Bd7 {[%clk 1:32:25]}
7. Bxd7+ {[%clk 1:33:17]}  Qxd7 {[%clk 1:32:31]} 8. Re1 {[%clk 1:33:41]}  O-O {[%clk 1:32:08]} 9. d4 {[%clk 1:34:07]}  cxd4 {[%clk 1:24:37]}
10. cxd4 {[%clk 1:34:31]}  Nc6 {[%clk 1:23:10]} 11. Nc3 {[%clk 1:31:27]}  a6 {[%clk 1:20:45]} 12. d5 {[%clk 1:23:39]}  Na5 {[%clk 1:18:02]}
13. Qd3 {[%clk 1:15:44]}  b5 {[%clk 1:15:41]} 14. h3 {[%clk 1:11:22]}  Rfc8 {[%clk 1:10:53]} 15. Ne2 {[%clk 1:05:27]}  Rc4 {[%clk 1:05:07]}
16. Ned4 {[%clk 0:56:27]}  Rac8 {[%clk 0:57:36]} 17. b3 {[%clk 0:56:40]}  R4c7 {[%clk 0:48:54]} 18. Bd2 {[%clk 0:49:34]}  Nb7 {[%clk 0:49:09]}
19. b4 {[%clk 0:49:28]}  Nd8 {[%clk 0:41:33]} 20. a4 {[%clk 0:46:40]}  bxa4 {[%clk 0:34:14]} 21. Qxa6 {[%clk 0:43:48]}  Ra7 {[%clk 0:34:20]}
22. Qd3 {[%clk 0:44:03]}  e6 {[%clk 0:32:22]} 23. dxe6 {[%clk 0:42:49]}  Nxe6 {[%clk 0:31:51]} 24. Be3 {[%clk 0:28:46]}  Rb7 {[%clk 0:28:08]}
25. Nxe6 {[%clk 0:22:23]}  Qxe6 {[%clk 0:26:44]} 26. Rxa4 {[%clk 0:22:30]}  Qxe4 {[%clk 0:24:22]} 27. Qxd6 {[%clk 0:21:53]}  Qc2 {[%clk 0:23:48]}
28. Rc1 {[%clk 0:16:17]}  Qf5 {[%clk 0:23:06]} 29. Rxc8+ {[%clk 0:16:24]}  Qxc8 {[%clk 0:23:30]} 30. Ra7 {[%clk 0:15:12]}  Rxa7 {[%clk 0:17:54]}
31. Bxa7 {[%clk 0:15:38]}  Qc1+ {[%clk 0:17:13]} 32. Kh2 {[%clk 0:15:58]}  h5 {[%clk 0:14:15]} 33. Qd8+ {[%clk 0:08:30]}  Bf8 {[%clk 0:09:29]}
34. Bc5 {[%clk 0:06:32]}  Qf4+ {[%clk 0:09:12]} 35. g3 {[%clk 0:06:15]}  Qxf3 {[%clk 0:08:43]} 36. Qxf8+ {[%clk 0:06:36]}  Kh7 {[%clk 0:09:10]}
37. Qxf7+ {[%clk 0:06:53]}  Kh6 {[%clk 0:09:14]} 38. Qf8+ {[%clk 0:04:56]}  Kh7 {[%clk 0:09:03]} 39. Qe7+ {[%clk 0:05:07]}  Kg8 {[%clk 0:08:58]}
40. Qe6+ {[%clk 0:04:42]}  Kh7 {[%clk 0:09:18]} 41. Bd4 {[%clk 0:03:59]} 1-0

[Event "2026 European Womens Championship"]
[Site "Batumi, GE"]
[Date "2026.05.30"]
[Round "6"]
[White "Kalyoncu, Beren"]
[Black "Ivanytska, Liudmyla"]
[Result "0-1"]
[Board "115"]
[TimeControl "5400+30"]
[WhiteFideId "51608383"]
[BlackFideId "14176211"]
[WhiteElo "1840"]
[BlackElo "2112"]
[WhiteTitle "WCM"]
[WhiteClock "0:17:14"]
[BlackClock "1:17:12"]
[Variant "Standard"]

1. e4 {[%clk 1:30:54]}  c5 {[%clk 1:30:12]} 2. c3 {[%clk 1:31:01]}  Nf6 {[%clk 1:30:34]} 3. e5 {[%clk 1:31:18]}  Nd5 {[%clk 1:31:02]}
4. Nf3 {[%clk 1:31:33]}  e6 {[%clk 1:31:28]} 5. d4 {[%clk 1:31:47]}  cxd4 {[%clk 1:31:55]} 6. cxd4 {[%clk 1:32:10]}  d6 {[%clk 1:32:18]}
7. Bc4 {[%clk 1:31:38]}  Be7 {[%clk 1:32:27]} 8. O-O {[%clk 1:31:34]}  O-O {[%clk 1:32:52]} 9. Qe2 {[%clk 1:31:19]}  b6 {[%clk 1:33:10]}
10. Rd1 {[%clk 1:29:15]}  Bb7 {[%clk 1:32:50]} 11. Bd2 {[%clk 1:27:50]}  Nd7 {[%clk 1:33:02]} 12. Nc3 {[%clk 1:25:19]}  Nxc3 {[%clk 1:33:22]}
13. Bxc3 {[%clk 1:25:37]}  dxe5 {[%clk 1:32:09]} 14. dxe5 {[%clk 1:19:26]}  Qc7 {[%clk 1:31:42]} 15. Bb3 {[%clk 1:16:51]}  Nc5 {[%clk 1:30:48]}
16. Bc2 {[%clk 1:17:00]}  Rfd8 {[%clk 1:30:02]} 17. Nd4 {[%clk 1:12:51]}  a5 {[%clk 1:28:40]} 18. Qh5 {[%clk 1:08:07]}  Be4 {[%clk 1:27:21]}
19. Rac1 {[%clk 1:03:47]}  Bxc2 {[%clk 1:25:01]} 20. Rxc2 {[%clk 1:03:24]}  Rd5 {[%clk 1:24:44]} 21. Nb5 {[%clk 0:59:20]}  Qc6 {[%clk 1:23:07]}
22. Rxd5 {[%clk 0:59:10]}  Qxd5 {[%clk 1:23:28]} 23. a3 {[%clk 0:48:21]}  Ne4 {[%clk 1:20:00]} 24. Nc7 {[%clk 0:26:41]}  Qd3 {[%clk 1:19:43]}
25. Qe2 {[%clk 0:24:16]}  Qxe2 {[%clk 1:20:09]} 26. Rxe2 {[%clk 0:24:37]}  Nxc3 {[%clk 1:20:38]} 27. bxc3 {[%clk 0:24:24]}  Rd8 {[%clk 1:21:06]}
28. g3 {[%clk 0:24:20]}  Bxa3 {[%clk 1:21:33]} 29. Ra2 {[%clk 0:24:26]}  Bf8 {[%clk 1:19:40]} 30. Rb2 {[%clk 0:20:57]}  Rc8 {[%clk 1:19:42]}
31. Nb5 {[%clk 0:21:08]}  g5 {[%clk 1:19:38]} 32. Nd6 {[%clk 0:20:44]}  Rc6 {[%clk 1:19:19]} 33. Ne4 {[%clk 0:20:52]}  Be7 {[%clk 1:18:36]}
34. Ra2 {[%clk 0:19:29]}  Rc4 {[%clk 1:18:38]} 35. f3 {[%clk 0:19:48]}  g4 {[%clk 1:18:18]} 36. Kg2 {[%clk 0:19:27]}  a4 {[%clk 1:16:40]}
37. Nd2 {[%clk 0:18:39]}  gxf3+ {[%clk 1:15:52]} 38. Nxf3 {[%clk 0:18:37]}  a3 {[%clk 1:15:18]} 39. Nd2 {[%clk 0:16:55]}  Rxc3 {[%clk 1:15:43]}
40. Kf2 {[%clk 0:17:09]}  b5 {[%clk 1:15:57]} 41. Ke2 {[%clk 0:17:04]}  b4 {[%clk 1:16:09]} 42. Ne4 {[%clk 0:17:21]}  Rc1 {[%clk 1:16:16]}
43. Nf6+ {[%clk 0:17:35]}  Kg7 {[%clk 1:16:13]} 44. Ne8+ {[%clk 0:17:28]}  Kf8 {[%clk 1:16:07]} 45. Nd6 {[%clk 0:17:51]}  b3 {[%clk 1:16:17]}
46. Rxa3 {[%clk 0:17:47]}  b2 {[%clk 1:16:43]} 47. Ra8+ {[%clk 0:17:14]}  Kg7 {[%clk 1:17:12]} 0-1